[Event "10th Cherry Blossom Classic 2023"]
[Site "Dulles"]
[Date "2023.05.29"]
[Round "7.14"]
[White "Plotkin, Mark"]
[Black "ADU, Oladapo"]
[Result "1-0"]
[ECO "D02"]
[WhiteElo "2341"]
[BlackElo "2081"]
[Annotator "TA"]
[PlyCount "89"]
[EventDate "2023.05.24"]
[EventType "swiss"]
[EventCountry "USA"]
[SourceTitle "playchess.com"]
[Source "ChessBase"]
[SourceQuality "1"]
[TimeControl "5400+30"]

{[%evp 9,89,2,12,-1,54,50,73,68,93,68,72,52,77,64,75,58,76,79,87,48,38,35,116,60,58,47,28,0,0,9,52,20,13,0,0,-7,48,48,86,20,99,98,97,107,700,671,703,703,685,622,622,622,622,622,610,602,593,553,818,811,811,806,801,796,762,747,847,729,847,847,847,847,1022,1022,1022,1022,1034,1034,1041,966,1635,1020]} 1. d4 {[%emt 0:00:26]} d5 {[%emt 0:00:24]} 2. Nf3 {[%emt 0:00:04]} e6 {[%emt 0:00:16]} 3. Bf4 {[%emt 0:00:08]} c5 {[%emt 0:00:22]} 4. e3 {[%emt 0:00:05]} Nf6 {[%emt 0:00:22]} 5. c3 {[%emt 0:00:21]} Bd6 {[%emt 0:00:16]} 6. Bb5+ {[%emt 0:00:58] [#] D02: 1 d4 d5 2 Nf3 sidelines, including 2...Nf6 3 g3 and 2...Nf6 3 Bf4.} Ke7 $146 {[%emt 0:02:08]} (6... Nc6 $11) ({Predecessor:} 6... Nc6 7. Bxc6+ bxc6 8. Bxd6 Qxd6 9. Qa4 O-O 10. O-O cxd4 11. cxd4 c5 12. Rc1 c4 13. b3 Bd7 {½-½ Carlsen,M (2859)-Ding,L (2811) Tata Steel-A 85th 2023 (3)}) 7. dxc5 $14 {[%emt 0:01:51]} Bxc5 {[%emt 0:05:09]} 8. O-O {[%emt 0:00:16] White is better.} Qb6 {[%emt 0:01:25]} 9. Qe2 {[%emt 0:00:28]} (9. c4 {is interesting.} Bd7 10. a4 Rc8 11. cxd5 Nxd5 12. Nc3) 9... Rd8 {[%emt 0:03:22]} 10. a4 {[%emt 0:01:37]} (10. Nbd2 $5 {[%cal Rb2b4]}) 10... a6 {[%emt 0:00:38]} 11. Bd3 {[%emt 0:00:03]} Bd6 {[%emt 0:00:11]} 12. Bg5 {[%emt 0:02:33] Strongly threatening e4.} Qc7 {[%emt 0:04:12]} 13. Nbd2 {[%emt 0:00:48]} (13. Bxh7 Rh8 14. e4 dxe4 15. Qxe4 Nbd7 $17) 13... h6 {[%emt 0:05:07]} 14. Bxf6+ {[%emt 0:04:10]} (14. Bh4 {simplifies} Nc6 15. Rae1 Kf8 16. Bxf6 gxf6 17. e4) 14... Kxf6 {[%emt 0:00:11]} 15. e4 {[%emt 0:00:46]} dxe4 {[%emt 0:00:07]} (15... g6 $14) 16. Qxe4 {[%emt 0:00:53]} ({White should play} 16. Nxe4+ $16 Ke7 17. Rad1) 16... g6 $1 {[%emt 0:04:50]} 17. Rad1 {[%emt 0:04:26]} Nc6 {[%emt 0:02:51]} 18. Rfe1 {[%emt 0:04:25]} Kg7 {[%emt 0:00:23]} 19. Nc4 {[%emt 0:00:24]} Rb8 {[%emt 0:08:42]} 20. a5 {[%emt 0:01:27]} e5 {[%emt 0:03:28] ...f5 is the strong threat.} (20... Be7 {feels hotter.} 21. h4 h5 22. Ng5 e5) 21. Qe2 {[%emt 0:10:59]} (21. Ncxe5 $2 Re8 22. Qa4 Bxe5 $19) (21. Nfxe5 $2 Bf5 22. Qe2 Bxe5 23. Bxf5 gxf5 $19) (21. g4 {looks sharper.} Qe7 22. b4 Be6 23. Ne3) 21... Bg4 {[%emt 0:01:34]} 22. Ne3 {[%emt 0:01:18]} (22. Ncxe5 $2 {loses.} Nxe5 23. Be4 Re8 $19) 22... Bxf3 {[%emt 0:05:41]} (22... Be6 $11) 23. Qxf3 {[%emt 0:00:03]} Qxa5 {[%emt 0:06:55]} 24. b4 {[%emt 0:09:11] White is more active.} (24. Bc4 $16 f6 25. Qg4 (25. Ng4 f5 $17) (25. b4 e4 $14)) 24... e4 {[%emt 0:00:41]} 25. Bxe4 $16 {[%emt 0:00:24]} Qe5 {[%emt 0:02:04]} 26. g3 $36 {[%emt 0:00:48][%mdl 2048] White is in control.} Qxc3 {[%emt 0:02:26][%mdl 8192] [#] Loses the game.} (26... Bf8 $16) 27. Nf5+ $1 $18 {[%emt 0:00:10][%mdl 576] Discovered Attack. White is clearly winning.} gxf5 {[%emt 0:00:22]} 28. Qxc3+ {[%emt 0:00:02]} Be5 {[%emt 0:00:01]} 29. Qf3 {[%emt 0:01:06]} fxe4 {[%emt 0:00:10]} 30. Qg4+ {[%emt 0:00:13]} Kf8 {[%emt 0:00:23]} 31. Qxe4 {[%emt 0:00:19]} Bc3 {[%emt 0:00:33]} 32. Rxd8+ {[%emt 0:00:01]} Rxd8 {[%emt 0:00:01]} 33. Rc1 {[%emt 0:00:03]} Rd4 {[%emt 0:01:03]} 34. Qh7 {[%emt 0:01:10]} Bxb4 {[%emt 0:00:41]} 35. Qxh6+ {[%emt 0:00:19]} Kg8 {[%emt 0:00:52]} 36. Qg5+ {[%emt 0:00:46]} Kf8 {[%emt 0:00:01]} 37. Qf6 {[%emt 0:00:24]} Rd6 {[%emt 0:00:17]} 38. Qh8+ {[%emt 0:00:08]} Ke7 {[%emt 0:00:01]} 39. Qc8 {[%emt 0:00:26]} Rd7 {[%emt 0:01:19]} 40. h4 {[%emt 0:00:19][%cal Bh2h4,Bh4h5][%mdl 32]} Bd2 {[%emt 0:01:40]} 41. Rd1 {[%emt 0:00:17]} Ne5 {[%emt 0:01:52]} 42. Kg2 {[%emt 0:00:15]} b5 {[%emt 0:00:40]} 43. Qxa6 {[%emt 0:00:17]} b4 {[%emt 0:00:26]} 44. Qb5 {[%emt 0:00:03]} f6 {[%emt 0:00:20]} 45. h5 {[%emt 0:00:31] Weighted Error Value: White=0.15 (very precise) /Black=0.42} 1-0

[Event "10th Cherry Blossom Classic 2023"]
[Site "Dulles"]
[Date "2023.05.29"]
[Round "7.15"]
[White "Chabris, Christopher"]
[Black "Altman, Joshua"]
[Result "1/2-1/2"]
[ECO "C10"]
[WhiteElo "2053"]
[BlackElo "2120"]
[Annotator "TA"]
[PlyCount "45"]
[EventDate "2023.05.24"]
[EventType "swiss"]
[EventCountry "USA"]
[SourceTitle "playchess.com"]
[Source "ChessBase"]
[SourceQuality "1"]
[TimeControl "5400+30"]

{[%evp 14,45,33,26,40,43,61,47,74,70,90,81,96,53,66,50,53,35,39,0,0,-6,-6,-6,-13,-10,-10,-59,-30,-79,-53,-50,-59,-60]} 1. e4 {[%emt 0:00:02]} e6 {[%emt 0:04:06]} 2. d4 {[%emt 0:00:02]} d5 {[%emt 0:00:05]} 3. Nc3 {[%emt 1:31:56]} dxe4 {[%emt 0:01:02]} 4. Nxe4 {[%emt 0:00:00]} Nd7 {[%emt 0:00:02]} 5. Nf3 {[%emt 0:00:00]} Ngf6 {[%emt 0:00:04]} 6. Bd3 {[%emt 0:00:00]} Nxe4 {[%emt 0:00:48]} 7. Bxe4 {[%emt 0:00:00]} Nf6 {[%emt 0:00:04]} 8. Bg5 {[%emt 0:00:00]} h6 {[%emt 0:11:54] C10: French with 3 Nc3: Unusual Black 3rd moves and 3...dxe4.} 9. Bxf6 {[%emt 0:00:00]} Qxf6 {[%emt 0:05:17]} 10. Qe2 {[%emt 0:00:00][%cal Oe4b7] Hoping for Bxb7!} Rb8 {[%emt 0:04:34] White is slightly better.} 11. O-O-O {[%emt 0:00:00]} Bd6 {[%emt 0:01:38]} 12. Kb1 {[%emt 0:00:00]} O-O {[%emt 0:03:23]} 13. g4 {[%emt 0:00:00] White is more active.} Qf4 {[%emt 0:12:10]} 14. h4 {[%emt 0:00:00]} Bd7 {[%emt 0:21:19][%cal Bc8d7,Bd7b5,Bb5c6][%mdl 32] [#]} 15. Rhg1 $146 {[%emt 0:00:00]} (15. Ne1 $5) ({Predecessor:} 15. Ne5 Rfd8 16. Nd3 Qf6 17. g5 Qxd4 18. gxh6 gxh6 19. Rhg1+ Kh8 20. Qh5 Qf6 21. Bg6 Bf8 22. Bxf7 Bg7 23. Rg6 Qxf7 24. Rdg1 Be8 25. Rxh6+ Kg8 26. Rh8# {1-0 Mukhin,A (2188)-Abdulkarim,A (1944) Al Ain op 2nd 2013 (8)}) 15... Bb5 {[%emt 0:09:52][%mdl 64] [#] Deflection} 16. Bd3 {[%emt 0:00:00]} Bc6 {[%emt 0:01:59]} 17. Ne5 {[%emt 0:00:00]} Bxe5 {[%emt 0:02:45]} 18. Qxe5 {[%emt 0:00:00]} Qxe5 {[%emt 0:02:16]} 19. dxe5 {[%emt 0:00:00]} g5 {[%emt 0:07:44]} 20. h5 {[%emt 0:00:00]} (20. hxg5 $11 hxg5 21. Rgf1) 20... Rbd8 {[%emt 0:01:31]} 21. Be2 {[%emt 0:02:59]} (21. Kc1 $11) 21... Rd5 {[%emt 0:02:25]} 22. Rxd5 {[%emt 0:01:29]} exd5 {[%emt 0:04:08]} 23. Bd3 {[%emt 0:00:15] Weighted Error Value: White=0.21 (precise) /Black=0.07 (flawless)} 1/2-1/2

[Event "10th Cherry Blossom Classic 2023"]
[Site "Dulles"]
[Date "2023.05.29"]
[Round "7.16"]
[White "Diao, Matthew Guo"]
[Black "Brady, Tyson"]
[Result "0-1"]
[ECO "A57"]
[WhiteElo "1973"]
[BlackElo "2092"]
[Annotator "TA"]
[PlyCount "94"]
[EventDate "2023.05.24"]
[EventType "swiss"]
[EventCountry "USA"]
[SourceTitle "playchess.com"]
[Source "ChessBase"]
[SourceQuality "1"]
[TimeControl "5400+30"]

{[%evp 16,94,50,28,44,36,45,33,29,0,27,10,9,9,27,36,54,0,0,15,18,3,13,0,0,0,27,20,110,125,124,116,142,153,149,154,160,146,153,153,153,153,182,136,131,67,55,8,9,0,0,0,0,0,0,0,0,0,0,-471,-466,-585,-551,-850,-817,-948,-899,-1274,-1257,-1215,-1207,-2668,-2466,-2280,-2123,-29989,-29990,-29990,-29991,-29991,-29992]} 1. d4 {[%emt 0:06:16]} Nf6 {[%emt 0:00:02]} 2. c4 {[%emt 0:00:27]} c5 {[%emt 0:00:03]} 3. d5 {[%emt 0:00:05]} b5 {[%emt 1:31:55]} 4. Qc2 {[%emt 0:00:05]} bxc4 {[%emt 0:00:00]} 5. e4 {[%emt 0:00:07]} g6 {[%emt 0:00:00]} 6. Bxc4 {[%emt 0:00:24]} d6 {[%emt 0:00:00]} 7. Nf3 {[%emt 0:00:51]} Bg7 {[%emt 0:00:00]} 8. O-O {[%emt 0:00:08]} O-O {[%emt 0:00:00]} 9. h3 {[%emt 0:11:01]} Na6 {[%emt 0:00:00][%cal Bb8a6,Ba6c7,Bc7e6][%mdl 32] A57: Benko/Volga Gambit.} 10. Nc3 {[%emt 0:06:42]} Rb8 {[%emt 0:00:00] [#]} 11. Rb1 $146 {[%emt 0:08:54]} ({Predecessor:} 11. Bf4 Qa5 12. e5 Ne8 13. Qe2 Nac7 14. Rac1 Ba6 15. b3 Bxc4 16. bxc4 Rb4 17. Ne4 {0-1 Remiro Juste,F (2232)-Cerrajeria Ruiz,J (2163) Aragon-chT Honor Titulo 2015 (10.10)}) 11... Nd7 {[%emt 0:00:00] White is slightly better.} 12. Qe2 {[%emt 0:22:13]} Nc7 {[%emt 0:00:00] And now ...Bxc3 would win.} 13. Bd2 {[%emt 0:09:50]} Nb6 {[%emt 0:00:00]} 14. b3 {[%emt 0:00:31]} e6 {[%emt 0:00:00]} 15. dxe6 {[%emt 0:11:49]} Nxe6 {[%emt 0:00:00]} 16. Nd5 {[%emt 0:03:19]} Re8 {[%emt 0:00:00]} 17. Qd3 {[%emt 0:03:17]} Bb7 {[%emt 0:00:00]} 18. Rfe1 {[%emt 0:02:27]} Bc6 {[%emt 0:00:00]} 19. g3 {[%emt 0:04:17]} Nd4 {[%emt 0:00:00]} 20. Nxd4 {[%emt 0:01:31]} cxd4 {[%emt 0:00:00]} 21. Nxb6 {[%emt 0:02:23]} axb6 {[%emt 0:00:00] [#]} (21... Qxb6 $11 22. Rbc1 (22. Qf3 Qb7 $15) 22... Bd7) 22. Bxf7+ $1 $16 {[%emt 0:01:24][%mdl 576] Decoy} Kxf7 {[%emt 0:00:00]} 23. Qc4+ {[%emt 0:00:04]} Kf8 {[%emt 0:00:00]} 24. Qxc6 {[%emt 0:00:09]} Rc8 {[%emt 0:00:00]} 25. Qb5 {[%emt 0:00:34]} Re5 {[%emt 0:00:00]} 26. Qd3 {[%emt 0:00:40]} Qd7 {[%emt 0:00:00]} 27. Kg2 {[%emt 0:00:58]} (27. Qxd4 Qxh3 28. Qd3 (28. Qxd6+ Kg8 $14) 28... Rh5 29. Qf3+ Kg8 $16) 27... b5 {[%emt 0:00:00]} 28. Rbc1 {[%emt 0:02:27] Rxc8+ would be deadly.} ({Don't play} 28. Qxd4 $6 Rh5 29. Qd3 Qxh3+ 30. Kf3 Rh4 $14) 28... Rec5 {[%emt 0:00:00]} 29. Rcd1 {[%emt 0:01:32]} (29. Ra1 $18) 29... Rc2 {[%emt 0:00:00]} 30. Bb4 {[%emt 0:00:08]} (30. a3 $16) 30... Rxa2 $14 {[%emt 0:00:00]} 31. e5 {[%emt 0:00:18]} (31. Ra1 $14 {is superior.} Rxa1 32. Rxa1) 31... Rcc2 $11 {[%emt 0:00:00]} 32. Qf3+ {[%emt 0:01:02]} (32. exd6 $2 {is a self mate.} Rxf2+ 33. Kh1 Qxh3+ 34. Kg1 Qh2#) 32... Kg8 {[%emt 0:00:00] Strongly threatening ...Rxf2+.} 33. e6 {[%emt 0:00:27]} Rxf2+ {[%emt 0:00:00]} 34. Qxf2 {[%emt 0:00:01]} Qb7+ {[%emt 0:00:00]} 35. Kg1 {[%emt 0:00:10]} Rxf2 {[%emt 0:00:00]} 36. Kxf2 {[%emt 0:00:05][%cal Oe6e7] aiming for e7!} Be5 {[%emt 0:00:00] Dancing on a razor blade.} 37. Rc1 $2 {[%emt 0:01:36][%mdl 8192]} (37. Rxe5 $1 $11 {and White has nothing to worry.} dxe5 38. Rf1) 37... Qe7 $19 {[%emt 0:00:00]} 38. Rc8+ {[%emt 0:00:31]} Kg7 {[%emt 0:00:00]} 39. Rec1 {[%emt 0:00:36]} Qxe6 {[%emt 0:00:00]} 40. R8c7+ {[%emt 0:00:32]} Kf6 {[%emt 0:00:00]} 41. Kg2 {[%emt 0:00:36]} Qd5+ {[%emt 0:00:00]} 42. Kg1 {[%emt 0:00:28]} Qxb3 {[%emt 0:00:00]} 43. Rf1+ {[%emt 0:00:18]} Ke6 {[%emt 0:00:00]} 44. Be1 {[%emt 0:00:26]} d3 {[%emt 0:00:00][%cal Od3d2] Threatens to win with ...d2!} 45. Rf3 {[%emt 0:00:47] [#]} d2 $1 {[%emt 0:00:00][%mdl 64] Discovered Attack. Black mates.} 46. Rxb3 {[%emt 0:00:28]} dxe1=Q+ {[%emt 0:21:30]} ({Not} 46... dxe1=R+ 47. Kf2 Re4 48. Rxh7 $16 (48. Rxb5 h5 $16)) 47. Kg2 {[%emt 0:00:21]} Qe2+ {[%emt 0:00:00] Quite a comeback for Black. Artfully played by Brady.   Weighted Error Value: White=0.87/Black=0.09 (flawless)} 0-1

[Event "10th Cherry Blossom Classic 2023"]
[Site "Dulles"]
[Date "2023.05.29"]
[Round "7.17"]
[White "Kanli, Alperen"]
[Black "Su, Kevin"]
[Result "1-0"]
[ECO "D11"]
[WhiteElo "2111"]
[BlackElo "2038"]
[Annotator "TA"]
[PlyCount "109"]
[EventDate "2023.05.24"]
[EventType "swiss"]
[EventCountry "USA"]
[SourceTitle "playchess.com"]
[Source "ChessBase"]
[SourceQuality "1"]
[TimeControl "5400+30"]

{[%evp 22,109,6,0,0,0,7,0,8,0,0,0,0,0,7,15,27,0,2,-70,-41,-45,102,105,109,113,113,117,117,108,118,107,164,145,400,376,608,604,606,600,583,415,493,307,567,566,871,841,903,725,902,582,683,318,302,295,366,282,329,329,451,448,447,423,447,454,447,425,468,458,787,789,677,648,1062,1061,887,870,681,644,904,860,29980,29981,29980,29981,4622,1932,29986,29987]} 1. d4 {[%emt 0:00:02]} d5 {[%emt 0:00:45]} 2. c4 {[%emt 0:00:08]} c6 {[%emt 0:00:03]} 3. Nf3 {[%emt 0:00:05]} Nf6 {[%emt 0:00:04]} 4. g3 {[%emt 0:00:03]} Bf5 {[%emt 0:00:05]} 5. Bg2 {[%emt 0:00:06]} e6 {[%emt 0:00:10]} 6. Nc3 {[%emt 0:00:01]} h6 {[%emt 0:00:47]} 7. O-O {[%emt 0:00:05]} Be7 {[%emt 0:00:06]} 8. Nd2 {[%emt 0:00:04]} O-O {[%emt 0:00:11]} 9. e4 {[%emt 0:00:42]} dxe4 {[%emt 0:00:07]} 10. Ndxe4 {[%emt 0:00:02]} Nbd7 {[%emt 0:00:08]} 11. Be3 {[%emt 0:00:37]} Nxe4 {[%emt 0:04:24]} 12. Nxe4 {[%emt 0:00:02]} Nf6 {[%emt 0:00:10] D11: Slav Defence: 3 Nf3 sidelines and 3...Nf6 4 e3 Bg4.} 13. Nc3 {[%emt 0:00:08]} Qd7 {[%emt 0:02:24]} 14. h3 {[%emt 0:00:41]} Rfd8 {[%emt 0:02:16] The position is equal.} 15. Qb3 {[%emt 0:00:21]} Rab8 {[%emt 0:03:59]} 16. a4 {[%emt 0:00:42] [#]} b6 $146 {[%emt 0:07:17]} ({Predecessor:} 16... Bd6 17. Rad1 Qe7 18. Rfe1 Rd7 19. d5 cxd5 20. cxd5 b6 21. g4 Bg6 22. dxe6 Qxe6 23. Qxe6 fxe6 {1-0 Khurtsidze,N (2220)-Kadimova,I (2270) EU-ch U20 Girls 1992}) 17. Rfd1 {[%emt 0:00:21]} Qc8 {[%emt 0:04:28]} 18. Rac1 {[%emt 0:00:22]} c5 {[%emt 0:03:02]} 19. Nb5 {[%emt 0:01:35]} Be4 $1 {[%emt 0:12:09]} 20. f3 {[%emt 0:01:21]} ({Better is} 20. Nxa7 $11 Qb7 21. Bxe4 Nxe4 22. Nb5) 20... cxd4 {[%emt 0:02:38]} 21. Bf4 {[%emt 0:04:58]} Bc6 {[%emt 0:03:57]} (21... Bg6 $15 {stays ahead.} 22. Nxa7 Qd7 23. Bxb8 Rxb8) 22. Nxa7 $16 {[%emt 0:00:30] White is more active.} Qd7 {[%emt 0:01:51][%csl LRa4,LRa7]} 23. Nxc6 {[%emt 0:00:07]} Qxc6 {[%emt 0:00:11]} 24. Bxb8 {[%emt 0:00:02]} Rxb8 {[%emt 0:00:09]} 25. Qb5 {[%emt 0:02:04]} (25. Rxd4 $2 {perishes.} Bc5 26. Qe3 e5 $19) 25... Qd6 {[%emt 0:00:55]} 26. f4 {[%emt 0:00:35]} d3 {[%emt 0:01:43]} (26... g5 $16) 27. c5 {[%emt 0:00:50]} Qd4+ {[%emt 0:01:16][%mdl 8192] A mistake that costs the game.} (27... bxc5 $16 28. Qxd3 Qb6) 28. Kh2 $18 {[%emt 0:00:03]} Bxc5 $2 {[%emt 0:07:35]} (28... d2) 29. Rxd3 {[%emt 0:00:44]} (29. Qxd3 Qxa4 30. Ra1 Qe8 $16) 29... Qb4 {[%emt 0:05:49]} 30. Qxb4 {[%emt 0:00:24]} Bxb4 {[%emt 0:00:04]} 31. Rc4 {[%emt 0:00:03]} Be7 {[%emt 0:01:31]} 32. Rc7 {[%emt 0:00:15]} Bc5 {[%emt 0:00:47] [#]} (32... Bd8) 33. a5 $1 {[%emt 0:00:33]} Nd5 {[%emt 0:01:11]} (33... bxa5 34. Rxc5) 34. Bxd5 {[%emt 0:00:13]} exd5 {[%emt 0:00:06]} 35. Rxd5 {[%emt 0:01:21][%mdl 4096] Endgame KRR-KRB} Re8 {[%emt 0:00:53]} 36. Rd2 {[%emt 0:00:46]} Bb4 {[%emt 0:00:21]} 37. Rdc2 {[%emt 0:00:01]} (37. axb6 $142 {[%cal Ob6b7] b7! would be deadly.} Ba5 38. Rc6) 37... bxa5 {[%emt 0:00:54]} 38. Kg2 {[%emt 0:00:26]} Re3 {[%emt 0:01:28]} 39. Kf2 {[%emt 0:01:02]} Rd3 {[%emt 0:00:45]} 40. Rb7 {[%emt 0:00:08]} g5 {[%emt 0:02:10]} 41. Rc8+ {[%emt 0:03:04]} Kg7 {[%emt 0:32:11]} 42. Rcc7 {[%emt 0:00:02]} gxf4 {[%emt 0:00:00]} 43. Rxf7+ {[%emt 0:00:26]} Kg6 {[%emt 0:00:00]} 44. Rxf4 {[%emt 0:00:03]} ({Less strong is} 44. gxf4 Rxh3 45. Ke2 Rb3 $18) 44... Rd2+ {[%emt 0:00:00]} 45. Kf3 {[%emt 0:00:05]} Rxb2 {[%emt 0:00:00]} (45... Rd3+ $142 46. Kg2 Rd2+ 47. Rf2 Rd6) 46. Rb6+ {[%emt 0:00:02]} Kg7 {[%emt 0:00:00]} 47. Rd4 {[%emt 0:00:02] [#] Threatening mate with Rd7+.} Rb3+ {[%emt 0:00:00]} 48. Kg4 {[%emt 0:00:06] White wants to mate with Rd7+.} Re3 {[%emt 0:00:00]} 49. Rd7+ {[%emt 0:00:26]} Be7 {[%emt 0:00:00]} 50. Kf5 {[%emt 0:00:21] aiming for Re6.} Kf8 {[%emt 0:00:17]} 51. Rxh6 {[%emt 0:01:16]} Rxg3 {[%emt 0:01:23]} 52. Rh8+ {[%emt 0:00:52]} Kg7 {[%emt 0:02:00]} 53. Re8 {[%emt 0:00:03]} ({Weaker is} 53. Rxe7+ Kxh8 54. h4 Ra3 $11) 53... Rf3+ {[%emt 0:01:03]} 54. Kg4 {[%emt 0:00:12]} Rf7 {[%emt 0:01:03]} 55. Rexe7 {[%emt 0:00:03] Weighted Error Value: White=0.36/Black=0.87} 1-0